bitfinex-derivatives/quotes_ETHF0:USTF0_20260312
["timestamp","ask_amount","ask_price","bid_price","bid_amount"]
[1773352979653,1.42004517,2064.3,2063.3,7.16011767]
[1773352979853,1.35404517,2064.1,2063.3,1.10298662]
[1773352981345,1.60311517,2064.1,2063.3,1.10298662]
[1773352983651,1.35404517,2064.1,2063.3,1.10298662]
[1773352983857,0.088,2064.2,2063.5,1.10995636]
[1773352984052,0.088,2064.2,2063.6,0.24228]
[1773352984251,0.088,2064.2,2063.7,1.10542107]
[1773352991461,1.35902266,2064.5,2063.7,1.10542107]
[1773352991662,0.24213,2064.9,2064.0,1.08069975]
[1773352991663,1.35404517,2064.9,2064.0,1.08069975]
[1773352991961,1.35404517,2064.9,2064.4,1.10491751]
[1773352991962,1.33204517,2064.9,2064.4,1.10491751]
[1773352992665,1.33697922,2064.9,2064.4,0.00603803]
[1773352992862,1.33697922,2064.9,2064.3,0.022]
[1773352993862,1.33697922,2064.9,2064.3,0.02542041]
[1773352994664,1.58156922,2064.9,2064.3,0.02542041]
[1773352995267,1.35404517,2064.2,2064.1,0.022]
[1773352995568,1.35404517,2064.4,2063.9,1.10417516]
[1773352995764,0.066,2064.5,2063.9,1.10417516]
[1773352995965,0.00493405,2064.9,2064.1,1.08136053]
[1773352995966,1.35404517,2064.8,2064.1,1.08136053]
[1773352996359,1.35404517,2064.8,2064.1,1.08478271]
[1773352999067,1.59618517,2064.8,2064.1,0.00342218]
[1773352999270,1.59618517,2064.8,2063.8,1.050799]
[1773353000067,1.35404517,2064.8,2064.2,1.04987106]
[1773353000263,0.00493405,2064.9,2064.2,1.05309909]
[1773353000870,1.36779142,2064.9,2064.2,1.05309909]
[1773353001869,1.36779142,2064.9,2064.2,0.00322803]
[1773353002075,1.36285737,2064.7,2063.8,1.0612008]
[1773353006179,1.36285737,2064.7,2063.7,1.04568523]
[1773353006367,1.36285737,2064.5,2063.7,1.04568523]
[1773353006571,1.36285737,2064.5,2063.6,1.04568523]
[1773353007470,1.36285737,2064.6,2063.6,1.28795523]
[1773353007673,0.00493405,2064.9,2064.3,1.03853158]
[1773353008674,1.36779142,2064.9,2064.1,1.03397697]
[1773353009371,1.34579142,2064.9,2064.5,0.022]
[1773353009973,1.38979142,2064.9,2064.5,0.022]
[1773353010476,1.39329505,2064.9,2064.5,0.02617272]
[1773353013081,1.63569505,2064.9,2064.3,0.022]
[1773353013280,1.36285737,2064.7,2064.3,0.022]
[1773353021579,4.03022773,2065.2,2064.3,0.022]
[1773353021580,1.36285737,2065.2,2064.3,7.08327452]
[1773353021782,6.03290063,2065.6,2064.1,7.59743135]
[1773353021783,1.36285737,2065.6,2064.7,1.35882828]
[1773353022081,1.34085737,2065.6,2065.4,0.022]
[1773353022483,1.34085737,2065.6,2065.2,0.022]
[1773353022896,1.38828523,2065.6,2065.2,0.0260231]
[1773353023199,1.38828523,2065.6,2065.0,0.022]
[1773353023395,1.35133057,2065.4,2065.1,0.022]
[1773353025597,1.35133057,2065.4,2065.0,0.022]
[1773353028502,1.43933057,2065.4,2064.8,1.40712936]
[1773353028995,1.35133057,2065.2,2064.6,0.022]
[1773353030002,1.35133057,2065.2,2064.6,1.40712936]
[1773353030498,1.35133057,2065.2,2064.6,0.022]
[1773353030705,1.72626057,2065.2,2064.4,0.022]
[1773353030997,1.57101786,2065.1,2064.4,0.022]
[1773353034003,1.45950786,2065.2,2064.4,1.60463151]
[1773353034400,1.45950786,2065.2,2064.4,0.022]
[1773353035605,0.67256959,2065.2,2064.4,0.022]
[1773353035801,0.67256959,2065.2,2064.3,1.34045151]
[1773353036101,0.65056959,2065.2,2064.6,0.022]
[1773353036305,0.89281959,2065.2,2064.6,0.022]
[1773353036798,1.57670786,2064.9,2064.4,0.022]
[1773353037706,1.32750786,2064.9,2064.4,0.022]
[1773353042808,1.56977786,2064.9,2064.4,0.022]
[1773353043002,1.32750786,2064.9,2064.4,1.36245151]
[1773353043204,1.41550786,2065.0,2064.4,1.60463151]
[1773353043602,1.41550786,2065.0,2064.4,1.36245151]
[1773353050812,1.41550786,2065.0,2064.2,0.022]
[1773353051115,0.24209,2065.3,2064.2,0.022]
[1773353051116,1.32750786,2064.8,2064.2,0.022]
[1773353051607,1.32750786,2064.8,2064.2,1.36245151]
[1773353054109,1.43750786,2064.9,2064.2,1.36245151]
[1773353054310,0.11,2064.9,2064.4,1.34045151]
[1773353054510,1.32750786,2065.1,2064.6,1.34045151]
[1773353054909,1.30550786,2065.1,2064.7,0.022]
[1773353055211,1.30550786,2065.1,2064.5,0.022]
[1773353055614,1.32750786,2064.9,2064.5,0.022]
[1773353055816,1.32750786,2064.9,2064.5,1.36245151]
[1773353056814,1.32750786,2064.9,2064.5,0.022]
[1773353057014,1.41550786,2064.9,2064.3,0.022]
[1773353062717,1.65782786,2064.9,2064.3,0.022]
[1773353063520,1.41550786,2064.9,2064.3,0.022]
[1773353064721,1.65870786,2064.9,2064.3,0.022]
[1773353065518,3.74421747,2064.9,2064.3,0.022]
[1773353065718,1.30485988,2064.8,2064.3,0.022]
[1773353069124,1.30485988,2064.8,2064.1,6.07913105]
[1773353069324,1.41485988,2064.8,2064.1,0.022]
[1773353069621,1.41485988,2064.8,2064.1,1.37037549]
[1773353073827,1.30416189,2064.6,2064.1,0.022]
[1773353074626,1.30416189,2064.4,2063.9,1.36162604]
[1773353077024,1.30416189,2064.6,2064.0,1.33962604]
[1773353083335,1.30416189,2064.6,2064.2,1.37133566]
[1773353083525,1.4200867,2064.7,2064.2,1.37133566]
[1773353084435,1.4200867,2064.7,2064.1,1.37133566]
[1773353087640,1.4200867,2064.7,2064.1,3.45684527]
[1773353087939,1.4200867,2064.7,2064.2,1.37133566]
[1773353092247,1.4200867,2064.7,2064.1,2.08550961]
[1773353092248,1.34866475,2065.0,2064.6,1.35421472]
[1773353092541,1.32666475,2065.0,2064.6,1.35421472]
[1773353092745,1.32666475,2065.0,2064.8,0.022]
[1773353092946,0.01120089,2065.0,2064.8,0.022]
[1773353100255,0.01120089,2065.0,2064.6,0.022]
[1773353100455,1.41466475,2064.9,2064.4,1.37621472]
[1773353100649,1.41466475,2064.9,2064.6,1.35421472]
[1773353100650,0.066,2064.9,2064.6,1.35421472]
[1773353101860,0.01475168,2064.9,2064.6,1.35421472]
[1773353102064,1.34866475,2065.3,2064.8,1.35421472]
[1773353102249,1.32666475,2065.4,2065.0,1.35421472]
[1773353102454,1.32666475,2065.4,2065.1,0.022]
[1773353104156,1.34866475,2065.1,2064.7,0.022]
[1773353104351,1.34866475,2064.9,2064.7,0.022]
[1773353104756,1.34866475,2064.9,2064.5,0.022]
[1773353105054,0.066,2065.2,2064.5,1.37621472]
[1773353105258,1.41466475,2065.2,2064.7,1.35421472]
[1773353106057,1.34866475,2065.1,2064.7,1.35421472]
[1773353111361,1.41466475,2065.2,2064.7,1.35421472]
[1773353111558,0.066,2065.2,2064.7,1.35421472]
[1773353111765,0.066,2065.2,2064.5,0.26417]
[1773353111766,3.43417436,2065.4,2064.9,1.35421472]
[1773353111767,1.34866475,2065.4,2064.9,1.35421472]
[1773353112063,11.35993747,2065.6,2065.1,1.35421472]
[1773353112064,10.62309261,2065.6,2065.1,1.35421472]
[1773353112261,1.34866475,2065.5,2065.1,1.35421472]
[1773353113966,1.34866475,2065.5,2065.1,1.33221472]
[1773353114569,1.32666475,2065.5,2065.1,1.33221472]
[1773353116068,1.32666475,2065.5,2064.8,0.022]
[1773353116373,1.39266475,2065.4,2064.9,1.35421472]
[1773353120773,0.044,2065.4,2064.9,1.35421472]
[1773353121670,1.38872386,2065.4,2064.9,1.35421472]
[1773353130188,0.00342786,2065.6,2064.9,1.35421472]
[1773353130394,0.00342786,2065.6,2065.1,1.38256441]
[1773353130587,10.64372386,2065.9,2065.1,1.38256441]
[1773353130783,10.64372386,2065.9,2065.4,0.022]
[1773353130784,1.34472386,2065.8,2065.4,0.022]
[1773353130984,1.34472386,2065.8,2065.2,1.40456441]
[1773353131382,1.38872386,2065.8,2065.2,1.40456441]
[1773353131587,1.39381565,2065.8,2065.2,1.40823413]
[1773353143501,0.04909179,2065.8,2065.2,3.49235475]
[1773353143702,0.04909179,2065.8,2065.3,1.34873645]
[1773353144199,1.46533767,2065.8,2065.3,1.34873645]
[1773353147199,0.04909179,2065.8,2065.3,1.34873645]
[1773353147398,1.46533767,2065.8,2065.3,1.34873645]
[1773353151004,1.46533767,2065.8,2065.2,0.02566972]
[1773353151207,1.46533767,2065.8,2065.2,1.3518752]
[1773353153609,1.46533767,2065.8,2065.2,0.02566972]
[1773353154111,1.70756767,2065.8,2065.2,0.02566972]
[1773353155718,1.70756767,2065.8,2065.0,1.34820548]
[1773353155719,1.6855638,2065.5,2065.0,1.34820548]
[1773353158219,1.4262238,2065.5,2065.0,1.34820548]
[1773353158517,1.4262238,2065.5,2065.0,0.022]
[1773353158518,10.6952238,2065.5,2065.0,0.022]
[1773353158714,1.6688538,2065.4,2065.0,0.022]
[1773353159113,1.6688538,2065.4,2064.6,1.34820548]
[1773353159114,1.4262238,2065.2,2064.6,1.34820548]
[1773353159708,1.5362238,2065.4,2064.6,1.34820548]
[1773353159914,10.7972238,2065.4,2064.6,1.34820548]
[1773353160114,0.11,2065.4,2064.6,1.59035548]
[1773353160417,0.11,2065.4,2064.7,1.32620548]
[1773353161417,1.5362238,2065.4,2064.7,1.32620548]
[1773353162621,1.5362238,2065.4,2064.6,1.34820548]
[1773353163223,1.4262238,2065.2,2064.6,0.022]
[1773353163420,1.4262238,2065.0,2064.6,0.022]
[1773353164014,1.4262238,2065.0,2064.2,0.022]
[1773353164220,1.4262238,2064.8,2064.2,0.022]
[1773353165715,1.4262238,2064.8,2064.0,1.34820548]
[1773353167523,0.176,2065.0,2064.0,3.4323261]
[1773353167524,1.4262238,2064.7,2064.0,3.4323261]
[1773353167824,1.4262238,2064.9,2064.1,1.32620548]
[1773353171231,1.4262238,2064.9,2064.0,0.022]
[1773353171232,1.4262238,2064.6,2064.0,0.022]
[1773353172525,1.4262238,2064.6,2063.8,0.022]
[1773353173532,10.6162238,2064.5,2063.8,1.34820548]
[1773353174531,1.4262238,2064.4,2063.8,1.34820548]
[1773353178430,10.6112238,2064.6,2063.8,1.34820548]
[1773353178628,1.4262238,2064.8,2064.2,1.32620548]
[1773353181135,0.198,2064.9,2064.2,1.32620548]
[1773353181438,1.50874639,2064.9,2064.2,1.32620548]
[1773353181733,1.50874639,2064.9,2064.4,1.30500809]
[1773353184339,0.198,2064.9,2064.4,1.30500809]
[1773353184733,1.31074639,2065.2,2064.8,1.30500809]
[1773353184935,1.28874633,2065.2,2064.8,1.30500809]
[1773353185134,1.26674633,2065.2,2065.0,0.022]
[1773353185332,1.31074639,2065.1,2064.4,1.32700809]
[1773353185935,1.31074639,2064.9,2064.4,1.32700809]
[1773353191139,1.31074639,2064.9,2064.4,1.56917809]
[1773353191340,1.31074639,2064.9,2064.4,1.32700809]
[1773353191942,1.39874639,2065.0,2064.4,1.32700809]
[1773353192843,1.39874639,2065.0,2064.4,1.57049809]
[1773353194143,1.39874639,2065.0,2064.4,1.32700809]
[1773353196044,1.39874639,2065.0,2064.4,0.022]
[1773353196245,1.31074639,2064.8,2064.4,0.022]
[1773353196853,1.31074639,2064.8,2064.4,1.32700809]
[1773353197352,1.31074639,2064.8,2064.4,0.022]
[1773353198253,1.31074639,2064.8,2064.3,1.30500809]
[1773353201451,1.42074639,2064.9,2064.3,1.30500809]
[1773353204660,0.11,2064.9,2064.5,1.38915483]
[1773353205957,1.53205147,2064.9,2064.5,1.38915483]
[1773353207957,0.11,2064.9,2064.5,1.38915483]
[1773353208661,1.53205147,2064.9,2064.5,1.38915483]
[1773353209060,0.11,2064.9,2064.5,1.38915483]
[1773353209954,1.53205147,2064.9,2064.5,1.38915483]
[1773353212064,0.11,2064.9,2064.5,1.38915483]
[1773353212266,0.088,2064.9,2064.7,1.37954246]
[1773353212464,0.06599994,2064.9,2064.7,1.37954246]
[1773353212862,10.53539749,2065.3,2064.7,1.37954246]
[1773353213064,10.53539749,2065.3,2064.3,6.30814415]
[1773353213065,1.43539749,2065.3,2064.9,1.37954246]
[1773353213260,14.04329573,2065.7,2065.1,1.40154246]
[1773353213461,11.42098296,2065.7,2065.1,1.40154246]
[1773353213760,1.43539749,2065.6,2065.1,1.40154246]
[1773353225986,0.022,2065.7,2065.3,1.37954246]
[1773353226187,2.32697092,2066.1,2065.3,1.37954246]
[1773353226188,1.43539749,2065.9,2065.3,1.37954246]
[1773353226487,1.43539749,2065.9,2065.0,0.24211]
[1773353226488,1.43539749,2065.9,2065.5,1.37954246]
[1773353226679,1.41339749,2065.9,2065.7,0.022]
[1773353227091,1.43539749,2066.1,2065.6,1.37954246]
[1773353227285,0.044,2065.9,2065.6,1.38299069]
[1773353227597,10.00566522,2066.5,2065.6,1.38299069]
[1773353227598,1.43539749,2066.8,2065.9,1.37954246]
[1773353227886,1.43539749,2066.7,2066.2,1.37954246]
[1773353228387,1.43539749,2066.7,2065.8,1.37954246]
[1773353228388,1.43539749,2066.6,2065.8,1.37954246]
[1773353228787,1.43539749,2066.6,2066.0,1.37954246]
[1773353228983,1.44022109,2066.6,2066.0,1.37954246]
[1773353229884,1.43539749,2066.5,2065.9,1.37954246]
[1773353232087,1.43539749,2066.5,2065.7,1.62454415]
[1773353233094,0.0048236,2066.6,2066.0,2.08498092]
[1773353233290,1.43539749,2066.8,2066.5,1.37954246]
[1773353234288,1.41339749,2066.8,2066.6,0.022]
[1773353234489,1.41824715,2066.8,2066.6,0.022]
[1773353235494,1.41824715,2066.8,2066.0,0.022]
[1773353235495,1.43539749,2066.6,2066.0,0.022]
[1773353235689,1.43539749,2066.3,2066.0,0.022]
[1773353235885,1.43539749,2066.3,2065.8,0.022]
[1773353236192,1.67931749,2066.3,2065.8,0.022]
[1773353241394,1.67931749,2066.3,2065.8,1.42777636]
[1773353242297,1.67931749,2066.3,2065.8,0.022]
[1773353245299,9.161,2066.5,2065.6,0.02544823]
[1773353245300,1.43504725,2065.8,2065.6,0.02544823]
[1773353245503,1.43504725,2065.8,2065.4,1.42777636]
[1773353245896,1.67909725,2065.8,2065.4,1.42777636]
[1773353246204,1.67909725,2065.8,2065.3,1.1228971]
[1773353246394,1.43504725,2065.8,2065.3,1.12792087]
[1773353248499,1.43504725,2065.8,2065.0,1.15275736]
[1773353249600,1.43504725,2065.8,2065.0,0.022]
[1773353249800,1.43504725,2065.8,2065.0,1.15807186]
[1773353251407,9.173,2065.9,2065.0,1.15807186]
[1773353251408,1.43504725,2065.5,2065.0,0.02571126]
[1773353251602,1.43504725,2065.5,2064.8,0.022]
[1773353252607,1.43504725,2065.5,2064.8,0.02326757]
[1773353252807,1.67741725,2065.5,2064.8,0.02326757]
[1773353256212,1.69500725,2065.4,2064.8,0.02326757]
[1773353259829,1.69427725,2065.9,2065.0,2.08244251]
[1773353260009,1.68151725,2065.8,2065.1,1.19145123]
[1773353260208,1.43504725,2065.8,2065.1,1.19145123]
[1773353261214,1.65504725,2066.0,2065.1,1.19145123]
[1773353264507,1.65504725,2066.0,2064.8,8.17537146]
[1773353264508,1.37116852,2066.4,2065.3,1.19190898]
[1773353265009,1.37116852,2066.4,2065.6,0.022]
[1773353265010,1.34916852,2066.4,2065.6,0.022]
[1773353265609,0.088,2066.2,2065.6,0.022]
[1773353265809,1.37116852,2066.1,2065.6,0.022]
[1773353266715,1.37116852,2066.1,2065.4,1.23728851]
[1773353266716,1.61411852,2066.0,2065.4,0.022]
[1773353266912,1.37116852,2066.0,2065.4,0.022]
[1773353270416,1.61407852,2066.0,2065.4,0.022]
[1773353271513,1.65797608,2065.9,2065.4,0.022]
[1773353282215,3.74041859,2065.9,2065.2,0.022]
[1773353282522,1.66010608,2065.8,2065.2,0.022]
[1773353284423,1.66760608,2065.6,2065.2,0.022]
[1773353285619,1.41154608,2065.9,2065.2,1.25369348]
[1773353285823,1.41154608,2065.9,2065.4,1.23169348]
[1773353286712,0.132,2066.0,2065.4,1.23169348]
[1773353286923,0.90286551,2066.4,2065.8,1.23382305]
[1773353286924,1.41154608,2066.4,2065.8,1.23382305]
[1773353287214,1.38954608,2066.4,2066.2,0.022]
[1773353287414,1.41154608,2066.6,2066.2,0.022]
[1773353287821,1.41154608,2066.4,2066.2,0.022]
[1773353288125,1.34786732,2066.4,2066.2,0.022]
[1773353288825,1.39186732,2066.4,2066.0,0.022]
[1773353290424,1.41154608,2066.3,2066.0,0.022]
[1773353292627,1.41154608,2066.3,2065.8,1.4069552]
[1773353292628,2.08729217,2066.8,2065.8,1.4069552]
[1773353292629,1.41154608,2066.7,2066.2,1.3849552]
[1773353292818,1.43354608,2066.7,2066.2,1.3849552]
[1773353294427,1.41154608,2066.5,2066.1,1.4069552]
[1773353301736,1.41154608,2066.5,2066.1,3.48831602]
[1773353302125,1.41154608,2066.5,2066.2,1.39912692]
[1773353302530,1.41154608,2066.5,2066.1,3.50248774]
[1773353304331,1.45554608,2066.5,2066.1,3.50248774]
[1773353309341,1.45554608,2066.5,2066.1,0.022]
[1773353309547,1.45554608,2066.5,2065.9,0.022]
[1773353309736,1.49954608,2066.5,2065.9,0.022]
[1773353310132,1.49954608,2066.5,2065.9,1.42112692]
[1773353315144,1.49954608,2066.5,2065.9,0.022]
[1773353316839,1.45554608,2066.5,2065.9,0.022]
[1773353317646,1.69794608,2066.5,2065.9,0.022]
[1773353319047,1.43024517,2066.3,2065.9,0.022]
[1773353319347,1.67354517,2066.3,2065.9,0.022]
[1773353319547,1.43024517,2066.1,2065.7,1.42112692]
[1773353321545,1.43024517,2065.9,2065.5,0.022]
[1773353322047,1.43024517,2065.9,2065.5,1.42112692]
[1773353324647,0.044,2065.8,2065.5,1.42112692]
[1773353325853,1.4099966,2065.8,2065.5,1.42112692]
[1773353328652,1.3659966,2065.9,2065.5,1.42112692]
[1773353332961,1.3659966,2065.9,2065.5,3.50248774]
[1773353333262,1.3659966,2065.9,2065.6,1.44285689]
[1773353334162,1.3659966,2065.9,2065.5,2.10336082]
[1773353334463,1.3659966,2065.9,2065.5,1.46485689]
[1773353338061,1.3659966,2065.9,2065.6,1.44285689]
[1773353338958,1.38044822,2066.1,2065.6,1.44285689]
[1773353339660,1.38044822,2066.1,2065.5,1.46485689]
[1773353340365,1.38044822,2066.1,2065.5,0.022]
[1773353340567,1.38044822,2065.9,2065.3,1.46485689]
[1773353341066,1.38044822,2065.5,2065.1,1.46485689]
[1773353347271,1.38044822,2065.5,2065.1,0.022]
[1773353347469,1.38044822,2065.5,2064.9,1.46485689]
[1773353348566,1.38044822,2065.5,2064.9,3.54621771]
[1773353348765,1.38044822,2065.5,2065.0,1.44285689]
[1773353351864,1.38044822,2065.5,2064.9,1.46485689]
[1773353353469,1.38044822,2065.3,2064.8,0.00126757]
[1773353353768,0.24205,2065.6,2064.5,0.022]
[1773353353769,1.38044822,2065.1,2064.5,0.022]
[1773353353972,1.38044822,2065.1,2064.3,2.10336082]
[1773353353973,1.38044822,2064.7,2064.3,0.022]
[1773353354273,1.38044822,2064.7,2064.3,1.46485689]
[1773353354774,1.38532785,2064.7,2064.3,1.46485689]
[1773353356271,1.38532785,2064.7,2064.3,0.022]
[1773353356572,1.38532785,2064.7,2064.1,1.70396867]
[1773353357366,1.38532785,2064.7,2064.1,0.26111178]
[1773353357572,1.38044822,2064.5,2064.1,0.022]
[1773353357770,1.38044822,2064.5,2064.0,1.20452466]
[1773353357972,1.38044822,2064.5,2064.0,3.28588548]
[1773353358872,1.38532785,2064.7,2064.1,1.44285689]
[1773353359072,1.38532785,2064.7,2064.2,2.08136082]
[1773353359274,1.38532785,2064.7,2064.2,3.52421771]
[1773353359974,1.38532785,2064.7,2064.3,1.44285689]
[1773353361567,1.1359019,2064.7,2064.3,1.44285689]
[1773353361772,1.1359019,2064.7,2064.1,1.39609464]
[1773353362677,1.14005757,2064.7,2064.1,1.40097427]
[1773353363379,1.14005757,2064.7,2064.3,1.39609464]
[1773353363680,1.42500064,2065.0,2064.4,1.39609464]
[1773353363867,1.42500064,2065.2,2064.5,1.39609464]
[1773353364071,1.42500064,2065.2,2064.7,1.39609464]
[1773353364271,0.264,2065.3,2064.7,1.39609464]
[1773353364476,1.68900064,2065.3,2064.7,1.39609464]
[1773353364679,1.68900064,2065.3,2064.5,1.39609464]
[1773353364680,1.69392656,2065.3,2064.5,1.39609464]
[1773353367182,1.42500064,2065.4,2064.9,1.39609464]
[1773353367675,1.40300064,2065.4,2065.2,0.022]
[1773353368285,1.40717383,2065.4,2065.2,0.022]
[1773353368984,1.40717383,2065.4,2065.1,1.39609464]
[1773353369282,1.45117383,2065.4,2065.0,1.41809464]
[1773353369783,1.45117383,2065.4,2065.0,0.022]
[1773353369983,1.42500064,2065.2,2064.6,0.022]
[1773353370283,1.51300064,2065.2,2064.6,0.022]
[1773353371785,1.75645064,2065.2,2064.6,0.022]
[1773353374984,1.42500064,2065.0,2064.6,0.022]
[1773353375185,1.69690064,2065.0,2064.6,0.022]
[1773353377281,1.67131064,2065.0,2064.6,1.41809464]
[1773353378284,1.42500064,2065.0,2064.6,1.41809464]
[1773353378479,1.67039064,2065.0,2064.6,1.41809464]
[1773353379080,1.67039064,2065.0,2064.6,0.022]
[1773353379483,1.42500064,2064.8,2064.4,0.022]
[1773353380185,1.67289064,2064.8,2064.4,0.022]
[1773353381484,1.42500064,2064.8,2064.4,1.41809464]
[1773353381685,9.11,2065.1,2064.4,1.41809464]
[1773353381686,0.11,2065.1,2064.4,1.41809464]
[1773353381989,10.42500064,2065.0,2064.4,1.41809464]
[1773353382183,1.42500064,2064.9,2064.4,1.41809464]
[1773353383387,1.42500064,2064.9,2064.4,0.022]
[1773353383790,1.66724064,2064.9,2064.4,0.022]
[1773353385589,1.42500064,2064.9,2064.4,0.022]
[1773353385789,1.66723064,2064.9,2064.4,0.022]
[1773353386889,1.66723064,2064.9,2064.2,0.022]
[1773353390590,1.42500064,2064.9,2064.2,0.022]
[1773353390797,1.42500064,2064.9,2064.2,1.53795631]
[1773353391088,10.43100064,2064.9,2064.2,1.78016631]
[1773353391696,10.43100064,2064.9,2064.3,1.51595631]
[1773353392700,1.42500064,2064.9,2064.3,1.51595631]
[1773353401202,1.42500064,2064.9,2064.3,1.76327933]
[1773353403003,1.42500064,2064.9,2064.3,1.51595631]
[1773353403302,1.54081016,2064.7,2064.1,0.00487963]
[1773353403504,2.32691071,2064.8,2064.0,0.022]
[1773353403505,1.54081016,2064.5,2064.0,0.022]
[1773353403900,1.54081016,2064.5,2063.8,0.022]
[1773353404599,1.54081016,2064.5,2063.8,1.54227065]
[1773353406404,1.54081016,2064.2,2063.6,3.72750368]
[1773353406706,1.54081016,2064.2,2063.6,1.53795631]
[1773353407114,1.54081016,2064.1,2063.6,1.53795631]
[1773353407500,5.68092707,2064.2,2063.6,1.54272355]
[1773353407703,1.54081016,2064.2,2063.6,1.54272355]
[1773353410214,1.54081016,2064.4,2063.7,2.08477071]
[1773353410519,1.54081016,2064.4,2063.6,1.54272355]
[1773353419521,5.67115525,2064.5,2063.4,2.10677071]
[1773353419522,1.54081016,2064.2,2063.4,0.022]
[1773353419820,1.54081016,2064.0,2063.4,0.022]
[1773353420024,1.54081016,2063.8,2063.0,0.022]
[1773353420320,1.54081016,2063.6,2063.0,0.022]
[1773353420519,1.54488561,2063.4,2063.0,0.022]
[1773353420824,1.548442,2063.4,2063.0,0.022]
[1773353421318,1.548442,2063.4,2062.9,1.51595631]
[1773353421916,1.548442,2063.4,2062.8,1.46074027]
[1773353422118,1.548442,2063.4,2062.8,0.022]
[1773353422518,1.548442,2063.4,2062.8,2.10677071]
[1773353422716,1.54488561,2063.6,2062.9,1.43874027]
[1773353422913,10.56688561,2063.7,2063.1,1.43874027]
[1773353423112,1.54488561,2063.7,2063.1,1.43874027]
[1773353423822,1.55049857,2063.7,2063.1,1.44229667]
[1773353429521,1.55049857,2063.7,2063.1,0.0035564]
[1773353429720,1.55049857,2063.7,2062.8,1.46074027]
[1773353436234,1.79303857,2063.7,2062.8,1.46074027]
[1773353437230,1.79545561,2063.5,2062.8,0.022]
[1773353437431,1.79546561,2063.3,2062.6,1.46074027]
[1773353437632,10.81046561,2063.3,2062.6,1.46074027]
[1773353437934,1.79438561,2063.2,2062.6,1.46074027]
[1773353438832,1.79438561,2063.2,2062.6,0.022]
[1773353439136,1.79438561,2063.2,2062.6,1.46074027]
[1773353445945,9.25994,2063.4,2062.9,1.5873602]
[1773353446137,9.26262,2063.4,2062.9,1.5873602]
[1773353446342,10.46067653,2063.4,2062.9,1.5873602]
[1773353448843,0.00561296,2063.7,2063.3,1.5873602]
[1773353449037,1.44367653,2064.1,2063.5,1.5873602]
[1773353449242,7.15147377,2064.1,2063.7,1.5873602]
[1773353449845,1.44367653,2064.0,2063.7,1.5873602]
[1773353450144,1.44788178,2064.0,2063.7,1.59183244]
[1773353450453,1.42588172,2064.0,2063.7,1.59183244]
[1773353450949,0.00420525,2064.0,2063.7,1.59183244]
[1773353451942,1.455053,2064.0,2063.7,1.59183244]
[1773353452950,0.00420525,2064.0,2063.7,1.59183244]
[1773353453247,1e-08,2064.0,2063.7,1.59183244]
[1773353453845,1.45084776,2064.0,2063.7,1.59183244]
[1773353455352,1e-08,2064.0,2063.7,1.59183244]
[1773353455552,1.45084776,2064.0,2063.7,1.59183244]
[1773353456456,1.45084776,2064.0,2063.4,1.60650781]
[1773353456749,1.45084775,2063.8,2063.4,1.60650781]
[1773353457351,1.45084775,2063.8,2063.4,1.61185377]
[1773353457958,1.45084775,2063.6,2063.1,1.85334463]
[1773353458153,2.08885602,2063.9,2063.2,1.60650781]
[1773353458154,1.45084775,2063.8,2063.2,1.60650781]
[1773353458356,9.05800001,2064.0,2063.6,1.60650781]
[1773353458557,0.308,2064.2,2063.8,1.60650781]
[1773353458748,0.22836092,2064.2,2063.8,1.60650781]
[1773353459662,0.23258836,2064.2,2063.8,1.60650781]
[1773353462363,1.68343611,2064.2,2063.8,1.60650781]
[1773353463261,0.23258836,2064.2,2063.8,1.60650781]
[1773353464568,0.23258836,2064.2,2063.9,1.60650781]
[1773353464865,9.08,2064.4,2063.9,1.60650781]
[1773353465067,10.53084775,2064.4,2063.9,1.60650781]
[1773353465264,10.50884775,2064.4,2064.2,0.022]
[1773353465976,10.513013,2064.4,2064.2,0.02544461]
[1773353467073,1.45084775,2064.3,2064.0,1.62850781]
[1773353467572,10.557013,2064.4,2064.0,1.62850781]
[1773353469376,1.45084775,2064.3,2064.0,1.62850781]
[1773353470772,9.10616525,2064.4,2064.0,1.62850781]
[1773353471071,1.45084775,2064.7,2064.1,1.60650781]
[1773353471276,10.54884775,2064.6,2064.1,1.60650781]
[1773353471569,10.52684775,2064.6,2064.4,0.022]
[1773353472173,10.52684775,2064.6,2064.4,0.02694808]
[1773353472174,10.53151159,2064.6,2064.4,0.02694808]
[1773353473070,9.08066384,2064.6,2064.4,0.02694808]
[1773353473275,10.53151159,2064.6,2064.4,0.02694808]
[1773353474372,1.45084775,2064.5,2064.2,0.022]
[1773353474566,1.51684775,2064.5,2064.0,1.62850781]
[1773353478375,1.51684775,2064.5,2064.1,1.60650781]
[1773353478778,0.066,2064.5,2064.1,1.60650781]
[1773353479381,1.51684775,2064.5,2064.1,1.60650781]
[1773353487784,1.53998077,2064.4,2064.1,1.60650781]
[1773353493591,1.60598077,2064.5,2064.1,1.60650781]
[1773353493887,1.53998077,2064.7,2064.1,1.60650781]
[1773353494081,0.61250069,2065.1,2064.6,1.36370351]
[1773353494281,1.51798077,2065.2,2064.6,1.36370351]
[1773353494990,1.52310849,2065.2,2064.7,1.39648814]
[1773353497389,1.52310849,2065.2,2064.6,0.00366419]
[1773353501192,1.52310849,2065.2,2064.6,1.35729237]
[1773353509194,1.52310849,2065.2,2064.6,0.00366419]
[1773353520603,0.00512772,2065.2,2064.6,1.4204473]
[1773353520809,1.78795771,2065.5,2064.8,1.41678311]
[1773353521102,9.251,2065.9,2065.3,0.022]
[1773353521103,1.76595771,2065.8,2065.3,0.022]
[1773353521302,1.76595771,2065.8,2065.3,1.85540986]
[1773353521603,3.85194373,2065.8,2065.1,0.022]
[1773353521807,1.78795771,2065.7,2065.1,0.022]
[1773353522107,1.83195771,2065.7,2065.1,0.022]
[1773353524510,1.85395771,2065.5,2064.9,0.022]
[1773353540427,1.85395771,2065.5,2064.9,1.87610335]
[1773353540629,1.75648318,2065.7,2065.2,1.92909198]
[1773353540828,1.76165134,2065.8,2065.2,1.92909198]
[1773353541126,1.76165134,2065.8,2065.6,0.022]
[1773353541127,1.73965134,2065.8,2065.6,0.022]
[1773353541322,1.73965134,2065.8,2065.4,1.95109198]
[1773353541728,1.78365134,2065.8,2065.4,1.95109198]
[1773353542127,1.78734027,2065.8,2065.4,1.95109198]
[1773353542932,0.04768893,2065.8,2065.4,1.95109198]
[1773353543131,1.75648318,2065.9,2065.4,1.92909198]
[1773353543327,11.02648318,2066.0,2065.4,1.92909198]
[1773353543523,1.75648318,2066.0,2065.7,0.022]
[1773353544124,1.76243804,2066.0,2065.7,0.022]